bitfinex/quotes_BTCUSD_20251031
["timestamp","ask_amount","ask_price","bid_price","bid_amount"]
[1761926409953,0.00063723,110340.0,110330.0,0.01541]
[1761926410174,0.00218723,110340.0,110320.0,0.004]
[1761926410365,0.00055,110330.0,110320.0,0.01295323]
[1761926410606,0.00055,110330.0,110320.0,0.01541]
[1761926411238,0.4837528,110340.0,110320.0,0.01541]
[1761926411439,0.00208723,110340.0,110320.0,0.01541]
[1761926411665,0.00055,110330.0,110310.0,0.35928]
[1761926411871,0.00055,110330.0,110310.0,0.46840896]
[1761926412087,0.00055,110330.0,110320.0,0.01575]
[1761926412310,0.4817528,110340.0,110320.0,0.01575]
[1761926412528,0.48276557,110330.0,110300.0,0.03544]
[1761926412735,0.48421557,110330.0,110320.0,0.006]
[1761926412942,2.48366557,110330.0,110320.0,0.006]
[1761926413179,2.00055,110330.0,110320.0,0.001]
[1761926413395,2.0,110320.0,110290.0,1.12130896]
[1761926413834,0.06845342,110320.0,110300.0,0.001]
[1761926414250,2.0,110320.0,110290.0,1.12130896]
[1761926414502,2.0,110320.0,110290.0,1.09814896]
[1761926414760,0.004,110330.0,110310.0,0.02753]
[1761926414962,2.0,110320.0,110310.0,0.02753]
[1761926415179,0.00055,110320.0,110300.0,0.04129236]
[1761926415847,0.00155,110320.0,110310.0,0.01575]
[1761926416099,0.00155,110320.0,110300.0,0.04229236]
[1761926416315,0.00155,110320.0,110310.0,0.02753]
[1761926416561,0.001,110320.0,110310.0,0.05069]
[1761926416987,8.723e-05,110340.0,110310.0,0.13665896]
[1761926417201,0.001,110320.0,110310.0,0.13765896]
[1761926418101,0.00155,110320.0,110310.0,0.02853]
[1761926418322,0.00155,110320.0,110310.0,0.001]
[1761926418762,0.48321557,110320.0,110310.0,0.001]
[1761926418982,0.48276557,110320.0,110290.0,1.12130896]
[1761926419194,0.00055,110320.0,110300.0,0.01813236]
[1761926419403,0.00055,110320.0,110310.0,0.01775]
[1761926419627,0.00055,110320.0,110310.0,0.002]
[1761926419843,0.00055,110320.0,110300.0,0.01239086]
[1761926420067,0.00055,110320.0,110300.0,0.03555086]
[1761926420286,0.00155,110320.0,110300.0,0.03555086]
[1761926420501,0.00055,110310.0,110300.0,0.02814086]
[1761926420721,0.00055,110310.0,110300.0,0.01575]
[1761926422274,0.001,110320.0,110310.0,0.004]
[1761926422499,0.00155,110320.0,110310.0,0.004]
[1761926422716,0.0021,110320.0,110310.0,0.004]
[1761926423607,0.00155,110320.0,110310.0,0.004]
[1761926423867,0.00055,110320.0,110310.0,0.001]
[1761926424299,0.00055,110320.0,110310.0,0.01278]
[1761926424734,0.00055,110320.0,110310.0,0.001]
[1761926425174,0.48166557,110330.0,110310.0,0.05169]
[1761926425399,2.0,110320.0,110310.0,0.05169]
[1761926425614,2.0,110330.0,110310.0,0.02853]
[1761926425837,0.00055,110320.0,110310.0,0.001]
[1761926426302,0.48221557,110320.0,110290.0,1.12130896]
[1761926426519,0.002,110310.0,110300.0,0.02922]
[1761926426953,0.002,110310.0,110300.0,0.04465]
[1761926427827,0.42700753,110310.0,110300.0,0.006]
[1761926428264,0.42700753,110310.0,110300.0,0.007]
[1761926428732,0.42500753,110310.0,110300.0,0.001]
[1761926429351,0.63031017,110310.0,110300.0,0.001]
[1761926429570,0.48301594,110310.0,110300.0,0.001]
[1761926430006,0.00455,110310.0,110300.0,0.001]
[1761926430280,0.0061,110310.0,110300.0,0.001]
[1761926430496,0.5739849,110310.0,110300.0,0.001]
[1761926430930,0.66280391,110310.0,110300.0,0.001]
[1761926431384,0.5729849,110310.0,110300.0,0.001]
[1761926431629,2.48191594,110300.0,110290.0,1.0004]
[1761926431852,3.0604699,110300.0,110290.0,0.73994021]
[1761926432070,2.55530538,110300.0,110290.0,0.71268518]
[1761926432291,2.16320845,110300.0,110290.0,0.68543015]
[1761926432516,2.64512439,110300.0,110290.0,0.63092009]
[1761926432757,2.52750608,110300.0,110290.0,0.63092009]
[1761926432962,2.52965041,110300.0,110290.0,0.63192009]
[1761926433616,2.53065041,110300.0,110290.0,0.63192009]
[1761926436191,2.54487206,110300.0,110290.0,0.63192009]
[1761926436605,2.53065041,110300.0,110290.0,0.63192009]
[1761926436855,2.62046942,110300.0,110290.0,0.63192009]
[1761926439006,2.63469546,110300.0,110290.0,0.63192009]
[1761926439384,2.64891711,110300.0,110290.0,0.63192009]
[1761926440711,2.89841711,110300.0,110290.0,0.63192009]
[1761926441139,2.93459939,110300.0,110290.0,0.63192009]
[1761926441345,2.93453615,110300.0,110290.0,0.63192009]
[1761926442052,2.93453615,110300.0,110290.0,0.60466561]
[1761926442271,2.93453615,110300.0,110290.0,0.57741113]
[1761926442440,2.93453615,110300.0,110290.0,0.55015665]
[1761926442664,2.93453615,110300.0,110290.0,0.52290217]
[1761926442885,2.93453615,110300.0,110290.0,0.49564769]
[1761926443795,2.89835387,110300.0,110290.0,0.49564769]
[1761926444012,2.93453615,110300.0,110290.0,0.46839321]
[1761926444683,2.93453615,110300.0,110290.0,0.44113873]
[1761926444905,2.93453615,110300.0,110290.0,0.4138841]
[1761926445319,2.93453615,110300.0,110290.0,0.38662947]
[1761926445558,3.19867935,110300.0,110290.0,0.38662947]
[1761926446418,2.94917935,110300.0,110290.0,0.38662947]
[1761926446823,2.94917935,110300.0,110290.0,0.35937484]
[1761926447063,2.20312021,110300.0,110290.0,0.33212021]
[1761926447279,2.91299707,110300.0,110290.0,0.30486558]
[1761926447483,2.94917935,110300.0,110290.0,0.27761095]
[1761926447668,2.94917935,110300.0,110290.0,0.25035632]
[1761926447892,2.94917935,110300.0,110290.0,0.22310169]
[1761926449485,2.93496399,110300.0,110290.0,0.22310169]
[1761926449712,3.11628765,110300.0,110290.0,0.22310169]
[1761926450113,3.11628765,110300.0,110290.0,0.37718716]
[1761926450114,2.8089627,110300.0,110290.0,0.37718716]
[1761926450304,3.12969032,110300.0,110290.0,0.37718716]
[1761926450746,3.11522428,110300.0,110290.0,0.37718716]
[1761926450949,3.27138713,110300.0,110290.0,0.37718716]
[1761926451086,3.1151642,110300.0,110290.0,0.37718716]
[1761926451291,3.0644242,110300.0,110290.0,0.19584706]
[1761926451498,3.11988837,110300.0,110290.0,0.19584706]
[1761926451697,3.54406484,110300.0,110290.0,0.19584706]
[1761926451889,3.11988837,110300.0,110290.0,0.19584706]
[1761926452156,2.79328153,110300.0,110290.0,0.37718716]
[1761926452307,2.97460519,110300.0,110290.0,0.37718716]
[1761926452759,2.98882654,110300.0,110290.0,0.37718716]
[1761926453166,2.80750288,110300.0,110290.0,0.37718716]
[1761926453437,2.98882654,110300.0,110290.0,0.37718716]
[1761926453647,3.07864555,110300.0,110290.0,0.19584706]
[1761926453858,3.07864555,110300.0,110290.0,0.37718716]
[1761926453859,2.80750288,110300.0,110290.0,0.37718716]
[1761926454059,2.98882654,110300.0,110290.0,0.37718716]
[1761926454281,2.98882654,110300.0,110290.0,0.19584706]
[1761926454485,2.98882654,110300.0,110290.0,0.37718716]
[1761926454702,2.89732189,110300.0,110290.0,0.37718716]
[1761926454916,2.91662157,110300.0,110290.0,0.37718716]
[1761926455356,0.02573259,110300.0,110290.0,0.42918716]
[1761926455583,0.01736568,110300.0,110290.0,0.51515612]
[1761926456049,0.00314433,110300.0,110290.0,0.51515612]
[1761926456485,0.00214433,110300.0,110290.0,0.51515612]
[1761926456703,0.00014433,110300.0,110290.0,0.93833259]
[1761926456913,0.00014433,110300.0,110290.0,0.51615612]
[1761926457117,0.00214433,110300.0,110290.0,0.52215612]
[1761926457785,0.00014433,110300.0,110290.0,0.51615612]
[1761926457989,0.00214433,110300.0,110290.0,0.52715612]
[1761926458418,0.00214433,110300.0,110290.0,0.41772716]
[1761926458632,0.00214433,110300.0,110290.0,0.44118716]
[1761926458849,0.00214433,110300.0,110290.0,0.41772716]
[1761926458850,0.00269433,110300.0,110290.0,0.41772716]
[1761926459062,0.00269433,110300.0,110290.0,0.38918716]
[1761926459488,0.00269433,110300.0,110290.0,0.41772716]
[1761926459713,0.00214433,110300.0,110290.0,0.44118716]
[1761926460390,0.00214433,110300.0,110290.0,0.41772716]
[1761926460540,0.00214433,110300.0,110290.0,0.44118716]
[1761926460755,0.00214433,110300.0,110290.0,0.41772716]
[1761926460960,0.00214433,110300.0,110290.0,0.44118716]
[1761926463458,0.00269433,110300.0,110290.0,0.41772716]
[1761926464046,0.92987319,110300.0,110290.0,0.20784706]
[1761926464420,1.0196922,110300.0,110290.0,0.20784706]
[1761926464831,0.18401799,110300.0,110290.0,0.20784706]
[1761926465051,0.18401799,110300.0,110290.0,0.44118716]
[1761926465052,0.00214433,110300.0,110290.0,0.44118716]
[1761926465903,0.00014433,110300.0,110290.0,0.43018716]
[1761926466358,0.00214433,110300.0,110290.0,0.43218716]
[1761926466588,0.00214433,110300.0,110290.0,0.51815612]
[1761926466796,0.00014433,110300.0,110290.0,0.51415612]
[1761926467003,0.00214433,110300.0,110290.0,0.52115612]
[1761926467225,0.01421927,110320.0,110310.0,0.18130722]
[1761926467449,0.01421927,110320.0,110310.0,0.20984722]
[1761926467702,0.19551006,110320.0,110310.0,0.052]
[1761926467941,0.19820006,110320.0,110310.0,0.02854]
[1761926468169,2.18129079,110320.0,110310.0,0.18130445]
[1761926468381,2.0,110320.0,110310.0,0.20984445]
[1761926468812,1.29818571,110330.0,110320.0,0.18129079]
[1761926469044,0.53549151,110330.0,110310.0,0.20984445]
[1761926469478,0.53549151,110330.0,110320.0,0.19781079]
[1761926469704,0.01421716,110330.0,110320.0,0.19781079]
[1761926469910,0.18127435,110330.0,110320.0,0.19781079]
[1761926470111,0.18327435,110330.0,110320.0,0.02152]
[1761926470312,0.18327435,110330.0,110320.0,0.005]
[1761926470516,0.18327435,110330.0,110320.0,0.18629079]
[1761926470936,0.18327435,110330.0,110320.0,0.005]
[1761926471657,0.92857955,110330.0,110320.0,0.005]
[1761926473193,0.002,110330.0,110320.0,0.31124975]
[1761926473843,0.002,110330.0,110320.0,0.22528079]
[1761926474058,0.0142166,110340.0,110330.0,0.18127435]
[1761926474282,0.01436147,110340.0,110330.0,0.18127435]
[1761926475143,0.01436147,110340.0,110330.0,0.20973435]
[1761926475594,0.01436147,110340.0,110330.0,0.19363435]
[1761926475804,0.01436147,110340.0,110330.0,0.20973435]
[1761926476218,0.01636147,110340.0,110330.0,0.21473435]
[1761926477304,0.01636147,110340.0,110330.0,0.21573435]
[1761926477517,0.01636147,110340.0,110330.0,0.19963435]
[1761926477518,0.1976194,110340.0,110330.0,0.19963435]
[1761926477733,0.1976194,110340.0,110330.0,0.18727435]
[1761926478135,0.01636147,110340.0,110330.0,0.20337435]
[1761926478353,0.01636147,110340.0,110330.0,0.18727435]
[1761926478564,0.9429246,110340.0,110330.0,0.006]
[1761926479003,3.03274361,110340.0,110330.0,0.006]
[1761926479655,2.1976194,110340.0,110330.0,0.006]
[1761926479875,2.9429246,110340.0,110330.0,0.006]
[1761926480084,2.9429246,110340.0,110330.0,0.0221]
[1761926481000,2.9429246,110340.0,110330.0,0.006]
[1761926481242,0.9429246,110340.0,110330.0,0.0221]
[1761926481450,0.1976194,110340.0,110330.0,0.0221]
[1761926481893,0.1976194,110340.0,110330.0,0.006]
[1761926482105,0.1976194,110340.0,110330.0,0.03446]
[1761926482549,0.1976194,110340.0,110330.0,0.01836]
[1761926482758,0.1976194,110340.0,110330.0,0.006]
[1761926483000,1.11871257,110340.0,110330.0,0.006]
[1761926483215,3.46709664,110340.0,110330.0,0.006]
[1761926484116,3.4864209,110340.0,110330.0,0.006]
[1761926484335,3.50321109,110340.0,110330.0,0.006]
[1761926484545,3.50321109,110340.0,110330.0,0.005]
[1761926485059,0.18129079,110320.0,110310.0,0.20273082]
[1761926485271,0.18129079,110320.0,110310.0,0.02846]
[1761926485688,0.18130722,110310.0,110300.0,0.03525]
[1761926485837,0.18130722,110310.0,110300.0,0.02846]
[1761926486072,0.18132366,110300.0,110290.0,0.41109716]
[1761926486424,0.18132366,110300.0,110290.0,0.42719716]
[1761926486624,0.18130722,110310.0,110290.0,0.42719716]
[1761926486829,0.18130722,110310.0,110300.0,0.19742366]
[1761926487274,0.18130722,110310.0,110300.0,0.0161]
[1761926487500,0.18130722,110310.0,110300.0,0.19742366]
[1761926487715,0.18130722,110310.0,110290.0,0.41309716]
[1761926487977,0.18132366,110300.0,110290.0,0.41109716]
[1761926488263,0.18130722,110310.0,110300.0,0.002]
[1761926488527,0.92661242,110310.0,110300.0,0.002]
[1761926489314,0.19035532,110320.0,110300.0,0.22231366]
[1761926489526,0.002,110310.0,110300.0,0.04899]
[1761926489741,0.002,110310.0,110300.0,0.20742366]
[1761926489742,0.18330722,110310.0,110300.0,0.20742366]
[1761926489952,0.18130722,110310.0,110300.0,0.19942366]
[1761926490178,0.18330722,110310.0,110300.0,0.22433366]
[1761926491479,0.002,110310.0,110300.0,0.22533366]
[1761926491683,2.0,110320.0,110310.0,0.1812983]
[1761926491912,0.19943639,110330.0,110310.0,0.1975483]
[1761926492128,0.18129079,110320.0,110310.0,0.2204583]
[1761926492364,0.18129079,110320.0,110310.0,0.01625]
[1761926492802,0.18129079,110320.0,110310.0,0.22046722]
[1761926493026,0.18329079,110320.0,110310.0,0.22446722]
[1761926493242,0.1883491,110330.0,110310.0,0.22446722]
[1761926493460,0.94304493,110330.0,110310.0,0.20821722]
[1761926493692,0.19974875,110330.0,110320.0,0.19754079]
[1761926494362,0.18966498,110330.0,110320.0,0.22045079]
[1761926494574,0.18127435,110330.0,110320.0,0.22045079]
[1761926494785,0.19957978,110340.0,110330.0,0.18127435]
[1761926495009,0.1814028,110340.0,110330.0,0.23253435]
[1761926495222,0.18979591,110340.0,110330.0,0.23253435]
[1761926495428,0.18979591,110340.0,110330.0,0.23053435]
[1761926495866,0.00853798,110340.0,110330.0,0.23053435]
[1761926496083,0.18979591,110340.0,110330.0,0.23053435]
[1761926496307,0.19079591,110340.0,110330.0,0.23553435]
[1761926497206,0.19079591,110340.0,110330.0,0.23653435]
[1761926497652,0.00953798,110340.0,110330.0,0.23653435]
[1761926497876,0.19079591,110340.0,110330.0,0.23653435]
[1761926498316,0.19079591,110340.0,110330.0,0.05726]
[1761926499310,0.19079591,110340.0,110330.0,0.23853435]
[1761926500324,0.00953798,110340.0,110330.0,0.23853435]
[1761926500480,0.1824028,110340.0,110330.0,0.23853435]
[1761926500681,0.1907855,110340.0,110330.0,0.23853435]
[1761926500886,0.00952757,110340.0,110330.0,0.23853435]
[1761926501094,0.1907855,110340.0,110330.0,0.23853435]
[1761926501522,0.1907855,110340.0,110330.0,0.05726]
[1761926502037,0.9360907,110340.0,110330.0,0.006]
[1761926502283,1.02205966,110340.0,110330.0,0.006]
[1761926502695,3.02205966,110340.0,110330.0,0.006]
[1761926503429,3.11187867,110340.0,110330.0,0.006]
[1761926504071,3.45187867,110340.0,110330.0,0.006]
[1761926504714,3.4712,110340.0,110330.0,0.006]
[1761926504933,3.38138099,110340.0,110330.0,0.006]
[1761926505140,2.55010876,110340.0,110330.0,0.02123]
[1761926505348,3.2760907,110340.0,110330.0,0.02123]
[1761926505553,2.5307855,110340.0,110330.0,0.006]
[1761926505768,2.5307855,110340.0,110330.0,0.02123]
[1761926506433,0.5307855,110340.0,110330.0,0.04618]
[1761926506867,0.5307855,110340.0,110330.0,0.006]
[1761926507408,1.09381721,110340.0,110330.0,0.006]
[1761926507630,1.0039982,110340.0,110330.0,0.006]
[1761926507848,1.0039982,110340.0,110330.0,0.22745435]
[1761926508066,0.5224028,110340.0,110330.0,0.04618]
[1761926508286,0.5224028,110340.0,110330.0,0.02123]
[1761926508515,1.08996716,110340.0,110330.0,0.006]
[1761926508955,1.12902572,110340.0,110330.0,0.006]
[1761926509639,1.08996716,110340.0,110330.0,0.006]
[1761926511448,3.08996716,110340.0,110330.0,0.006]
[1761926511895,3.1176892,110340.0,110330.0,0.006]
[1761926512059,3.14493323,110340.0,110330.0,0.006]
[1761926512708,3.1176892,110340.0,110330.0,0.006]
[1761926513107,3.1176892,110340.0,110330.0,0.00714341]
[1761926513487,3.1186892,110340.0,110330.0,0.00714341]
[1761926513698,3.1176892,110340.0,110330.0,0.00214341]
[1761926513909,3.1186892,110340.0,110330.0,0.00314341]
[1761926514116,3.20850821,110340.0,110330.0,0.00314341]
[1761926514317,3.1186892,110340.0,110330.0,0.00314341]
[1761926517306,3.13548406,110340.0,110330.0,0.00314341]
[1761926518846,3.13548406,110340.0,110330.0,1e-08]
[1761926518847,3.65326174,110340.0,110330.0,1e-08]
[1761926519070,3.68050968,110340.0,110330.0,1e-08]
[1761926519324,3.28873329,110340.0,110330.0,1e-08]
[1761926519753,3.3389109,110340.0,110330.0,1e-08]
[1761926520476,3.3369109,110340.0,110330.0,1e-08]
[1761926520694,3.3389109,110340.0,110330.0,1e-08]
[1761926520916,3.3369109,110340.0,110330.0,1e-08]
[1761926521133,3.3389109,110340.0,110330.0,1e-08]
[1761926521318,3.3369109,110340.0,110330.0,1e-08]
[1761926521553,3.35112879,110340.0,110330.0,1e-08]
[1761926522367,3.30295118,110340.0,110330.0,1e-08]
[1761926522789,3.21313217,110340.0,110330.0,1e-08]
[1761926523213,3.21513217,110340.0,110330.0,1e-08]
[1761926523420,3.22735393,110340.0,110330.0,1e-08]
[1761926523642,3.22935393,110340.0,110330.0,1e-08]
[1761926523858,3.21513217,110340.0,110330.0,1e-08]
[1761926524066,3.30295118,110340.0,110330.0,1e-08]
[1761926524290,3.17694989,110340.0,110330.0,1e-08]
[1761926525161,3.21313217,110340.0,110330.0,1e-08]
[1761926525402,3.69472757,110340.0,110330.0,1e-08]
[1761926525636,3.69672757,110340.0,110330.0,1e-08]
[1761926526079,3.30495118,110340.0,110330.0,1e-08]
[1761926526328,3.30295118,110340.0,110330.0,1e-08]
[1761926526986,3.31717343,110340.0,110330.0,1e-08]
[1761926527198,2.9290042,110340.0,110330.0,1e-08]
[1761926527411,3.892195,110340.0,110330.0,1e-08]
[1761926527616,3.86894642,110340.0,110330.0,1e-08]
[1761926528047,2.0,110300.0,110290.0,0.4011369]
[1761926528253,0.18132171,110310.0,110290.0,0.3761869]
[1761926528469,0.67197841,110320.0,110300.0,0.21468602]
[1761926528470,0.19038301,110320.0,110300.0,0.21468602]
[1761926528676,0.53038301,110320.0,110310.0,0.02758]
[1761926528898,0.53038301,110320.0,110310.0,0.23383722]
[1761926528899,0.18129079,110320.0,110310.0,0.23383722]
[1761926529756,0.18130722,110310.0,110300.0,0.20627366]
[1761926529954,0.18130722,110310.0,110300.0,0.21862366]
[1761926530161,0.18130722,110310.0,110300.0,0.23385366]
[1761926530374,0.18130722,110310.0,110300.0,0.05253]
[1761926530575,0.66290262,110310.0,110300.0,0.05253]
[1761926530820,0.66290262,110310.0,110300.0,0.02758]
[1761926530998,0.18130722,110310.0,110300.0,0.05253]
[1761926531202,0.18130722,110310.0,110300.0,0.23585366]
[1761926531858,0.19552521,110310.0,110300.0,0.23585366]
[1761926532066,0.19552521,110310.0,110300.0,0.05453]
[1761926532285,0.19552521,110310.0,110300.0,0.23585366]
[1761926532529,0.1864172,110310.0,110300.0,0.23585366]
[1761926532712,0.18330722,110310.0,110300.0,0.24485366]
[1761926533353,0.002,110310.0,110300.0,0.24485366]
[1761926533558,0.18330722,110310.0,110300.0,0.24485366]
[1761926533985,0.002,110310.0,110300.0,0.24485366]
[1761926534396,0.002,110310.0,110300.0,0.24551497]
[1761926536491,0.002,110310.0,110300.0,1.10329265]
[1761926539018,0.19032101,110340.0,110330.0,0.18127435]
[1761926539247,0.6719647,110340.0,110320.0,0.20382598]
[1761926539493,0.6719647,110340.0,110330.0,0.01636]
[1761926539951,0.6719647,110340.0,110320.0,0.0342804]
[1761926539952,0.18127435,110330.0,110320.0,0.0117304]
[1761926540174,0.66286975,110330.0,110320.0,0.0117304]
[1761926540401,0.66286975,110330.0,110320.0,0.23193119]
[1761926540634,0.66286975,110330.0,110320.0,0.0506404]
[1761926540857,0.66286975,110330.0,110320.0,0.0002204]
[1761926541095,0.66286975,110330.0,110320.0,0.0012204]
[1761926541548,0.66286975,110330.0,110320.0,0.0175804]
[1761926541765,0.66286975,110330.0,110320.0,0.0012204]
[1761926541982,0.66286975,110330.0,110320.0,0.0175804]
[1761926542168,0.66386975,110330.0,110320.0,0.0225804]
[1761926542405,0.66386975,110330.0,110320.0,0.0215804]
[1761926542610,0.66386975,110330.0,110320.0,0.0225804]
[1761926542852,0.66286975,110330.0,110320.0,0.0175804]
[1761926543060,0.66286975,110330.0,110320.0,0.0195804]
[1761926543314,0.66386975,110330.0,110320.0,0.0195804]
[1761926545060,0.66386975,110330.0,110320.0,0.20087119]
[1761926545274,0.66386975,110330.0,110320.0,0.22342119]
[1761926545485,0.18227435,110330.0,110320.0,0.22342119]
[1761926546143,0.18227435,110330.0,110320.0,0.0421304]
[1761926546577,0.66386975,110330.0,110320.0,0.0195804]
[1761926547089,0.66386975,110330.0,110320.0,0.0032204]
[1761926547296,3.48546515,110330.0,110320.0,0.0032204]
[1761926547508,3.03161529,110330.0,110320.0,0.0032204]
[1761926548147,3.51321069,110330.0,110320.0,0.0032204]
[1761926548358,3.03161529,110330.0,110320.0,0.0032204]
[1761926548779,3.1214343,110330.0,110320.0,0.0032204]
[1761926549031,3.1214343,110330.0,110320.0,0.0022204]
[1761926549252,3.1224343,110330.0,110320.0,0.0022204]
[1761926549991,3.62025164,110330.0,110320.0,0.0022204]
[1761926550187,3.14968189,110330.0,110320.0,0.0022204]
[1761926550384,3.16647627,110330.0,110320.0,0.0022204]
[1761926550967,3.16547627,110330.0,110320.0,0.0002204]
[1761926551185,3.07965726,110330.0,110320.0,0.0012204]
[1761926551697,3.07708114,110330.0,110320.0,0.0175804]
[1761926551904,3.04983355,110330.0,110320.0,0.0175804]
[1761926552401,1.04143595,110330.0,110320.0,0.0175804]
[1761926553380,1.02208801,110330.0,110320.0,0.0012204]
[1761926553840,3.04298708,110330.0,110320.0,0.0012204]
[1761926553991,3.07074113,110330.0,110320.0,0.0012204]
[1761926554396,3.55233653,110330.0,110320.0,0.0012204]
[1761926555066,3.07074113,110330.0,110320.0,0.0012204]
[1761926555304,3.04984206,110330.0,110320.0,0.0012204]
[1761926555484,3.04144208,110330.0,110320.0,0.0012204]
[1761926556498,3.04984377,110330.0,110320.0,0.0012204]
[1761926558583,1.04984377,110330.0,110320.0,0.0012204]
[1761926558778,1.04144208,110330.0,110320.0,0.0012204]
[1761926559107,1.04144208,110330.0,110320.0,0.0175804]
[1761926559333,1.00786975,110330.0,110320.0,0.0175804]
[1761926559543,1.00786975,110330.0,110320.0,0.0012204]
[1761926559751,1.00786975,110330.0,110320.0,0.0175804]
[1761926559953,1.00786975,110330.0,110320.0,0.0012204]
[1761926560575,1.00786975,110330.0,110320.0,0.0175804]
[1761926561184,1.00786975,110330.0,110320.0,0.0012204]
[1761926564927,3.00786975,110330.0,110320.0,0.0012204]
[1761926565583,3.09768876,110330.0,110320.0,0.0012204]
[1761926565799,3.00786975,110330.0,110320.0,0.0012204]
[1761926566545,3.03563714,110330.0,110320.0,0.0012204]
[1761926566980,3.05244509,110330.0,110320.0,0.0012204]
[1761926567392,3.3164208,110330.0,110320.0,0.0012204]
[1761926569465,3.3436678,110330.0,110320.0,0.0012204]
[1761926569670,3.65667148,110330.0,110320.0,0.0012204]
[1761926570247,3.5912678,110330.0,110320.0,0.0012204]
[1761926571077,3.5640208,110330.0,110320.0,0.0012204]
[1761926573031,3.54721285,110330.0,110320.0,0.0012204]
[1761926574380,3.5640396,110330.0,110320.0,0.0012204]
[1761926574800,3.60550735,110330.0,110320.0,0.0012204]
[1761926576564,3.60550735,110330.0,110320.0,0.0168904]
[1761926576776,3.5886806,110330.0,110320.0,0.0168904]
[1761926577198,3.57445893,110330.0,110320.0,0.0168904]
[1761926577962,1.57445893,110330.0,110320.0,0.0168904]
[1761926578613,0.48888782,110330.0,110320.0,0.19818119]
[1761926578822,0.48888782,110330.0,110320.0,0.22088119]
[1761926579233,0.46112043,110330.0,110320.0,0.19818119]
[1761926579579,0.45612043,110330.0,110320.0,0.0158904]
[1761926579783,0.45612043,110330.0,110320.0,0.20018119]
[1761926579983,0.02824608,110330.0,110320.0,0.20118119]
[1761926580197,0.001,110330.0,110320.0,0.22388119]
[1761926581921,0.001,110330.0,110320.0,0.20118119]
[1761926582129,0.18227435,110330.0,110320.0,0.20118119]
[1761926583095,0.001,110330.0,110320.0,0.22388119]
[1761926583703,0.001,110330.0,110320.0,0.30985015]
[1761926585527,0.001,110330.0,110320.0,0.18551119]
[1761926585757,0.18227435,110330.0,110320.0,0.18551119]
[1761926585976,0.18227435,110330.0,110320.0,0.20118119]
[1761926586176,0.18227435,110330.0,110320.0,0.18551119]
[1761926586393,0.92755546,110330.0,110320.0,0.18551119]
[1761926586607,0.92755546,110330.0,110320.0,0.0042204]
[1761926586828,0.92755546,110330.0,110320.0,0.18551119]
[1761926587029,0.92755546,110330.0,110320.0,0.0042204]
[1761926588207,0.92755546,110330.0,110320.0,0.18456119]
[1761926588404,0.00071,110330.0,110320.0,0.20023119]
[1761926588609,0.18198435,110330.0,110320.0,0.20023119]
[1761926588805,0.00071,110330.0,110320.0,0.22293119]
[1761926589741,0.00071,110330.0,110320.0,0.30890015]
[1761926590925,0.00071,110330.0,110320.0,0.34508243]
[1761926591795,0.00071,110330.0,110320.0,0.34408243]
[1761926591796,0.00061,110330.0,110320.0,0.34408243]
[1761926591999,0.00061,110330.0,110320.0,0.34608243]
[1761926592205,0.00061,110330.0,110320.0,0.30990015]
[1761926592414,0.00061,110330.0,110320.0,0.20123119]
[1761926592620,0.00061,110330.0,110320.0,0.22481119]
[1761926592807,0.7456194,110340.0,110330.0,0.18127435]
[1761926593251,0.92687733,110340.0,110330.0,0.18127435]
[1761926593704,0.92687733,110340.0,110320.0,0.02558]
[1761926594052,0.92684546,110330.0,110320.0,0.18329079]
[1761926594064,0.92684546,110330.0,110320.0,0.002]
[1761926594255,3.01281442,110330.0,110320.0,0.002]
[1761926594489,3.35281442,110330.0,110320.0,0.002]
[1761926595295,0.18129079,110320.0,110310.0,0.18130613]
[1761926595799,0.18130722,110310.0,110300.0,0.20199974]
[1761926596171,0.18130722,110310.0,110300.0,0.20836366]
[1761926596372,0.18129079,110320.0,110300.0,0.22033233]
[1761926596702,0.18129079,110320.0,110310.0,0.19673722]
[1761926596970,2.18129079,110320.0,110310.0,0.19673722]
[1761926597184,0.18129079,110320.0,110310.0,0.19673722]
[1761926597397,0.18130722,110310.0,110300.0,0.18132233]
[1761926597582,0.18130722,110310.0,110300.0,0.19675366]
[1761926597820,0.9268619,110320.0,110300.0,0.19675366]
[1761926598006,0.18129079,110320.0,110300.0,0.22033366]
[1761926598267,0.18130722,110310.0,110300.0,0.19775366]
[1761926598475,0.18129079,110320.0,110300.0,0.19775366]
[1761926598691,0.18130722,110310.0,110300.0,0.19975366]
[1761926599128,0.9278619,110320.0,110300.0,0.22365366]
[1761926599336,0.18129079,110320.0,110310.0,0.18130722]
[1761926599559,0.18129079,110320.0,110310.0,0.19704722]
[1761926599777,0.18129079,110320.0,110310.0,0.22163722]
[1761926599995,0.18129079,110320.0,110310.0,0.01574]
[1761926600211,0.18130722,110310.0,110300.0,0.20591366]
[1761926600429,0.18130722,110310.0,110300.0,0.20791366]
[1761926600634,0.18229079,110320.0,110310.0,0.01574]
[1761926601071,0.19650761,110320.0,110310.0,0.01596043]
[1761926601285,0.19650761,110320.0,110310.0,0.00022043]
[1761926601919,0.19550761,110320.0,110310.0,0.00022043]
[1761926602368,0.19650761,110320.0,110310.0,0.18352765]
[1761926602580,0.19650761,110320.0,110310.0,0.00222043]
[1761926603004,0.19650761,110320.0,110310.0,0.18352765]
[1761926603738,0.19650761,110320.0,110310.0,0.19926765]
[1761926603923,0.01521682,110320.0,110310.0,0.19926765]
[1761926604127,0.001,110320.0,110310.0,0.22385765]
[1761926606121,0.001,110320.0,110310.0,1.34561104]
[1761926606884,0.001,110320.0,110310.0,0.60003993]
[1761926607112,4.829e-05,110340.0,110330.0,0.18127435]
[1761926607315,4.829e-05,110340.0,110330.0,0.22649178]
[1761926607535,0.18130622,110340.0,110330.0,0.20836435]
[1761926607740,0.18130622,110340.0,110330.0,0.19262435]
[1761926607961,4.829e-05,110340.0,110330.0,0.19262435]
[1761926608600,4.829e-05,110340.0,110330.0,0.20836435]
[1761926609230,0.00104829,110340.0,110330.0,0.19901435]
[1761926609447,0.00104829,110340.0,110330.0,0.22460435]
[1761926612717,0.00104829,110340.0,110330.0,0.20001435]
[1761926613347,0.00104829,110340.0,110330.0,0.22460435]
[1761926613762,0.00104829,110340.0,110330.0,0.18427435]
[1761926613971,0.00084829,110340.0,110330.0,0.20001435]
[1761926614427,0.18210622,110340.0,110330.0,0.20001435]
[1761926615132,0.00084829,110340.0,110330.0,0.20001435]
[1761926615600,0.18210622,110340.0,110330.0,0.20001435]
[1761926616200,0.00084829,110340.0,110330.0,0.20001435]
[1761926616608,0.18210622,110340.0,110330.0,0.20001435]
[1761926616767,0.00084829,110340.0,110330.0,0.20001435]
[1761926617411,0.00084829,110340.0,110330.0,0.22460435]
[1761926617867,0.00084829,110340.0,110330.0,0.20001435]